bitfinex/quotes_SOLUSD_20250708
["timestamp","ask_amount","ask_price","bid_price","bid_amount"]
[1752007645306,10.41543942,150.83,150.79,3.78538847]
[1752007646192,18.64964886,150.8,150.78,0.03]
[1752007646377,22.43503733,150.8,150.78,0.03]
[1752007647193,29.06664767,150.8,150.78,0.03]
[1752007647391,25.2812592,150.8,150.78,0.03]
[1752007648995,154.1302706,150.83,150.79,3.78538847]
[1752007650401,154.1302706,150.83,150.78,6.66196215]
[1752007650608,154.1302706,150.83,150.79,3.78538847]
[1752007651099,6.6302706,150.83,150.79,3.78538847]
[1752007652696,6.6302706,150.83,150.79,10.4171151]
[1752007653476,6.6302706,150.83,150.79,3.78538847]
[1752007655201,6.6302706,150.83,150.8,3.78538847]
[1752007656696,6.6302706,150.83,150.79,3.78538847]
[1752007656903,6.6302706,150.83,150.8,3.78538847]
[1752007660914,6.6302706,150.83,150.78,0.03]
[1752007661088,6.6302706,150.83,150.79,3.78538847]
[1752007661293,10.41565907,150.83,150.79,3.78538847]
[1752007661586,22.43503733,150.82,150.78,0.03]
[1752007661791,3.78538847,150.81,150.78,0.03]
[1752007662913,6.63107736,150.81,150.78,3.81538847]
[1752007664100,18.64964886,150.8,150.78,0.03]
[1752007664300,22.43503733,150.8,150.78,0.03]
[1752007665284,25.28138836,150.79,150.78,0.03]
[1752007668323,18.64964886,150.79,150.78,0.03]
[1752007670418,6.63149299,150.8,150.78,0.03]
[1752007670592,18.64964886,150.8,150.78,0.03]
[1752007671093,18.64964886,150.8,150.78,3.81538847]
[1752007673726,33.4,150.81,150.78,3.81538847]
[1752007677635,18.64964886,150.8,150.78,0.03]
[1752007677945,18.64964886,150.8,150.78,3.81538847]
[1752007678528,33.4,150.81,150.78,3.81538847]
[1752007678718,33.4,150.81,150.79,3.78538847]
[1752007680118,33.4,150.81,150.78,0.03]
[1752007680417,33.4,150.81,150.79,3.78538847]
[1752007680915,18.64964886,150.81,150.79,3.78538847]
[1752007681427,147.5,150.83,150.79,10.41711115]
[1752007681731,180.9,150.83,150.8,3.78538847]
[1752007682031,18.64964886,150.82,150.79,3.78538847]
[1752007685536,0.06,150.81,150.79,3.78538847]
[1752007685728,0.06,150.81,150.78,10.44753228]
[1752007687338,0.06,150.81,150.79,3.78538847]
[1752007689740,0.06,150.81,150.78,0.03]
[1752007690031,0.06,150.81,150.78,3.81538847]
[1752007691138,0.06,150.81,150.78,0.03]
[1752007691318,18.64964886,150.8,150.78,0.03]
[1752007693021,25.28100372,150.8,150.78,0.03]
[1752007696820,29.06639219,150.8,150.78,0.03]
[1752007698343,22.43503733,150.79,150.78,0.03]
[1752007698522,29.06677683,150.79,150.78,0.03]
[1752007698926,62.46677683,150.79,150.78,0.03]
[1752007702136,58.68138836,150.79,150.78,0.03]
[1752007702338,62.46677683,150.79,150.78,0.03]
[1752007704043,69.82902586,150.79,150.78,0.03]
[1752007706854,69.82429974,150.79,150.78,0.03]
[1752007712077,66.03891127,150.79,150.78,0.03]
[1752007712375,69.82429974,150.79,150.78,0.03]
[1752007713840,69.8165395,150.79,150.78,0.03]
[1752007717270,62.46677683,150.79,150.78,0.03]
[1752007722143,25.28138836,150.79,150.78,0.03]
[1752007722350,62.48677683,150.79,150.78,0.03]
[1752007728174,58.70138836,150.79,150.78,0.03]
[1752007729376,25.28138836,150.79,150.78,0.03]
[1752007729555,58.70138836,150.79,150.78,0.03]
[1752007730174,58.76138836,150.79,150.78,0.03]
[1752007731278,62.54677683,150.79,150.78,0.03]
[1752007734575,29.12677683,150.79,150.78,0.03]
[1752007734884,62.54677683,150.79,150.78,0.03]
[1752007737853,69.91088057,150.79,150.78,0.03]
[1752007738284,62.54677683,150.79,150.78,0.03]
[1752007740363,69.9142237,150.79,150.78,0.03]
[1752007745193,66.12883523,150.79,150.78,0.03]
[1752007745397,69.9142237,150.79,150.78,0.03]
[1752007764028,95.9142237,150.79,150.78,0.03]
[1752007770417,20.24164886,150.78,150.77,0.03]
[1752007770731,31.3944842,150.78,150.77,0.03]
[1752007770908,38.02666353,150.78,150.77,0.03]
[1752007771512,42.94441456,150.78,150.77,0.03]
[1752007772331,22.43503733,150.77,150.76,0.1]
[1752007772505,68.12023523,150.77,150.76,0.1]
[1752007773229,18.64964886,150.73,150.69,1.3804397]
[1752007773405,37.18538847,150.72,150.69,1.3804397]
[1752007774426,22.43503733,150.71,150.69,1.3804397]
[1752007774621,33.4,150.72,150.69,1.3804397]
[1752007774622,22.43503733,150.7,150.69,1.3804397]
[1752007774831,18.64964886,150.7,150.69,1.3804397]
[1752007775135,18.64964886,150.71,150.69,1.3804397]
[1752007775336,25.28508194,150.71,150.69,1.3804397]
[1752007775715,29.07047041,150.71,150.69,1.3804397]
[1752007777015,25.28508194,150.71,150.69,1.3804397]
[1752007777820,18.64964886,150.71,150.69,1.3804397]
[1752007778241,25.28500535,150.71,150.69,1.3804397]
[1752007779732,18.64964886,150.71,150.69,1.3804397]
[1752007782919,26.0,150.72,150.69,1.3804397]
[1752007783120,18.64964886,150.72,150.69,1.3804397]
[1752007783719,25.28452795,150.72,150.69,1.3804397]
[1752007784238,25.28452795,150.72,150.69,5.16582817]
[1752007784448,18.64964886,150.72,150.69,5.16582817]
[1752007786523,25.28449731,150.72,150.69,5.16582817]
[1752007788345,25.28449731,150.72,150.69,1.3804397]
[1752007788646,25.28449731,150.72,150.69,5.16582817]
[1752007792343,25.28449731,150.72,150.69,1.3804397]
[1752007792647,25.28449731,150.72,150.69,5.16582817]
[1752007795659,3.78538847,150.71,150.69,1.3804397]
[1752007796024,29.06988578,150.72,150.69,1.3804397]
[1752007797434,29.06988578,150.72,150.69,1.4104397]
[1752007798555,25.28449731,150.72,150.69,1.4104397]
[1752007798728,29.06988578,150.72,150.69,1.4104397]
[1752007800525,25.28449731,150.72,150.69,1.4104397]
[1752007804935,29.06988578,150.72,150.69,1.4104397]
[1752007806170,3.78538847,150.7,150.69,1.4104397]
[1752007806368,22.43503733,150.7,150.69,1.4104397]
[1752007807251,41.32892786,150.7,150.69,1.4104397]
[1752007807482,41.32712436,150.7,150.69,1.4104397]
[1752007807645,42.83702436,150.7,150.69,1.4104397]
[1752007808045,26.0,150.67,150.61,5.13838591]
[1752007808246,3.78538847,150.64,150.61,5.13838591]
[1752007808459,33.42,150.64,150.61,5.13838591]
[1752007808776,22.43503733,150.62,150.61,5.13838591]
[1752007808971,55.85503733,150.62,150.61,5.13838591]
[1752007809175,58.70887339,150.62,150.61,5.13838591]
[1752007809471,18.64964886,150.58,150.5,3.78538847]
[1752007809670,3.78538847,150.54,150.49,3.78538847]
[1752007809885,18.64964886,150.54,150.46,16.61463704]
[1752007810051,3.78538847,150.53,150.48,3.78538847]
[1752007810377,3.78538847,150.52,150.46,16.61463704]
[1752007810558,3.78538847,150.51,150.46,10.43167319]
[1752007810758,3.78538847,150.51,150.47,3.78538847]
[1752007810974,3.78538847,150.5,150.46,10.43167319]
[1752007811170,18.64964886,150.52,150.46,6.64628472]
[1752007811474,37.24538847,150.51,150.45,23.26334298]
[1752007811647,3.78538847,150.5,150.46,3.78538847]
[1752007811975,33.46,150.51,150.47,3.78538847]
[1752007812177,22.43503733,150.5,150.45,6.64672648]
[1752007812350,6.0239,150.52,150.46,3.78538847]
[1752007812554,37.26538847,150.51,150.47,3.78538847]
[1752007812749,37.26538847,150.51,150.4,100.62330156]
[1752007812750,1.5992,150.47,150.39,17.9997647]
[1752007813082,1.5992,150.51,150.46,5.94410348]
[1752007813376,35.1392,150.51,150.45,0.14216157]
[1752007813563,35.1392,150.51,150.48,5.94410348]
[1752007813965,1.6402,150.55,150.5,5.94410348]
[1752007814193,1.6402,150.59,150.54,5.94410348]
[1752007814399,1.6402,150.59,150.58,5.94410348]
[1752007814685,6.6571,150.61,150.58,5.94410348]
[1752007814892,40.2571,150.61,150.58,5.94410348]
[1752007815063,8.27908689,150.63,150.58,5.94410348]
[1752007815261,38.44846149,150.62,150.58,5.94410348]
[1752007815479,4.84846149,150.61,150.6,5.94410348]
[1752007815794,33.6,150.62,150.6,5.94410348]
[1752007815991,1.6402,150.63,150.61,5.94410348]
[1752007816290,1.6402,150.63,150.56,5.94410348]
[1752007816291,1.6402,150.63,150.6,5.94410348]
[1752007817659,1.6402,150.63,150.61,5.94410348]
[1752007817864,18.64964886,150.64,150.62,5.94410348]
[1752007818879,25.28804968,150.64,150.61,5.94410348]
[1752007819176,18.64964886,150.64,150.61,5.94410348]
[1752007819750,18.64964886,150.64,150.62,5.94410348]
[1752007821370,18.64964886,150.67,150.63,5.94410348]
[1752007821597,18.64964886,150.67,150.65,5.94410348]
[1752007822080,18.64964886,150.67,150.62,6.63910161]
[1752007822579,25.28667093,150.67,150.65,5.94410348]
[1752007822775,18.64964886,150.67,150.65,5.94410348]
[1752007824671,18.64964886,150.67,150.62,6.63910161]
[1752007824887,18.64964886,150.67,150.64,5.94410348]
[1752007825479,18.64964886,150.67,150.63,5.94410348]
[1752007826484,18.64964886,150.67,150.64,5.94410348]
[1752007829269,164.08580487,150.74,150.66,5.94410348]
[1752007829474,5.94410348,150.72,150.67,5.94410348]
[1752007829671,50.59375234,150.72,150.67,5.94410348]
[1752007829874,24.59375234,150.72,150.67,5.94410348]
[1752007830078,24.59375234,150.72,150.68,5.94410348]
[1752007830278,58.19375234,150.72,150.68,5.94410348]
[1752007830482,18.64964886,150.72,150.69,5.94410348]
[1752007831192,18.64964886,150.72,150.7,5.94410348]
[1752007831366,25.28450175,150.72,150.7,5.94410348]
[1752007832385,25.28450175,150.72,150.69,5.94410348]
[1752007832580,18.64964886,150.72,150.69,5.94410348]
[1752007832803,18.64964886,150.72,150.7,5.94410348]
[1752007835584,18.64964886,150.72,150.69,5.94410348]
[1752007838890,18.64964886,150.72,150.7,5.94410348]
[1752007839198,18.64964886,150.72,150.69,5.94410348]
[1752007842806,18.70964886,150.72,150.7,5.94410348]
[1752007846815,25.34453407,150.72,150.67,6.63683414]
[1752007847119,25.34453407,150.72,150.69,5.94410348]
[1752007847986,25.34453407,150.72,150.66,0.28432314]
[1752007848186,25.34453407,150.72,150.69,5.94410348]
[1752007850603,25.34453407,150.72,150.68,5.94410348]
[1752007853201,25.34453407,150.72,150.69,5.94410348]
[1752007857001,25.34457583,150.72,150.69,5.94410348]
[1752007857318,25.34457583,150.72,150.7,5.94410348]
[1752007859316,18.70964886,150.72,150.71,5.94410348]
[1752007862628,26.06,150.72,150.71,5.94410348]
[1752007863812,38.63897487,150.72,150.66,6.63741008]
[1752007864120,38.63897487,150.72,150.68,5.94410348]
[1752007864512,32.69487139,150.72,150.68,5.94410348]
[1752007864709,32.69487139,150.72,150.69,5.94410348]
[1752007874319,4.9103222,150.71,150.69,5.94410348]
[1752007874632,32.69487139,150.72,150.69,5.94410348]
[1752007874837,4.91016901,150.71,150.69,5.94410348]
[1752007875020,32.69487139,150.72,150.69,5.94410348]
[1752007875221,4.910085,150.71,150.69,5.94410348]
[1752007875518,32.69487139,150.72,150.69,5.94410348]
[1752007875715,4.9116874,150.71,150.69,5.94410348]
[1752007876020,32.69487139,150.72,150.69,5.94410348]
[1752007876218,4.91173793,150.71,150.69,5.94410348]
[1752007876421,32.69487139,150.72,150.69,5.94410348]
[1752007876621,4.9121293,150.71,150.69,5.94410348]
[1752007876812,32.69487139,150.72,150.69,5.94410348]
[1752007877014,4.91213112,150.71,150.69,5.94410348]
[1752007877231,32.69487139,150.72,150.69,5.94410348]
[1752007877430,4.91263071,150.71,150.69,5.94410348]
[1752007877738,32.69487139,150.72,150.69,5.94410348]
[1752007880642,14.00405021,150.71,150.69,5.94410348]
[1752007880939,6.63529198,150.71,150.69,5.94410348]
[1752007881133,6.63526166,150.71,150.69,5.94410348]
[1752007881434,26.06,150.72,150.7,5.94410348]
[1752007881630,7.37016102,150.71,150.7,5.94410348]
[1752007884949,32.69500795,150.72,150.7,5.94410348]
[1752007884950,26.06,150.72,150.7,5.94410348]
[1752007885141,26.06,150.72,150.71,5.94410348]
[1752007885446,33.43141931,150.72,150.71,5.94410348]
[1752007886432,38.34539863,150.72,150.71,5.94410348]
[1752007886754,33.43141931,150.72,150.71,5.94410348]
[1752007890845,33.43141931,150.72,150.71,3.78968193]
[1752007891044,7.43141931,150.72,150.66,6.63746183]
[1752007891248,7.43141931,150.72,150.69,3.78968193]
[1752007891249,26.01918883,150.71,150.69,3.78968193]
[1752007891554,18.64964886,150.71,150.69,3.78968193]
[1752007892556,25.2852055,150.71,150.68,3.78968193]
[1752007892939,25.2852055,150.71,150.68,5.92364255]
[1752007895258,6.63555664,150.71,150.68,5.92364255]
[1752007898450,6.69481953,150.72,150.68,5.92364255]
[1752007898631,7.3674611,150.71,150.68,5.92364255]
[1752007898829,12.61846208,150.72,150.68,5.92364255]
[1752007899138,7.36746383,150.71,150.66,6.63742655]
[1752007899345,12.61846208,150.72,150.67,5.92364255]
[1752007899545,14.00210204,150.71,150.67,5.92364255]
[1752007899847,6.63557803,150.71,150.67,5.92364255]
[1752007900551,5.92364255,150.69,150.61,0.03]
[1752007900859,5.92364255,150.67,150.62,5.92364255]
[1752007902138,12.56097258,150.67,150.63,5.92364255]
[1752007902342,6.63733003,150.67,150.64,5.92364255]
[1752007905362,6.63733003,150.67,150.61,6.66966536]
[1752007905555,6.63733003,150.67,150.64,5.92364255]
[1752007905762,6.63733003,150.67,150.65,5.92364255]
[1752007906670,8.20434631,150.68,150.65,5.92364255]
[1752007908759,14.12798886,150.68,150.64,5.92364255]
[1752007909059,5.92364255,150.67,150.63,5.92364255]
[1752007909953,6.63746183,150.66,150.63,5.92364255]
[1752007912758,6.6371872,150.67,150.64,5.92364255]
[1752007916264,5.92364255,150.66,150.62,5.92364255]
[1752007917064,5.92364255,150.63,150.59,5.92364255]
[1752007917277,5.92364255,150.63,150.58,5.92364255]
[1752007917278,1.5769,150.62,150.58,5.92364255]
[1752007917660,5.92364255,150.61,150.57,5.92364255]
[1752007917958,7.50054255,150.62,150.58,5.92364255]
[1752007918146,6.63966536,150.61,150.58,5.92364255]
[1752007918647,8.21633118,150.62,150.59,5.92364255]
[1752007918851,1.5769,150.62,150.61,5.92364255]
[1752007919072,66.17842646,150.64,150.61,5.92364255]
[1752007919463,66.17842646,150.64,150.61,5.42364255]
[1752007920650,66.17842646,150.64,150.6,5.92364255]
[1752007921150,72.10206901,150.64,150.6,5.92364255]
[1752007924781,72.10206901,150.64,150.57,0.28432314]
[1752007924956,72.10206901,150.64,150.6,5.92364255]
[1752007928473,46.10206901,150.64,150.6,5.92364255]
[1752007928662,40.17842646,150.64,150.6,5.92364255]
[1752007928853,14.4069733,150.66,150.63,5.92364255]
[1752007930187,7.7694,150.66,150.64,5.92364255]
[1752007930687,1.5769,150.66,150.65,5.92364255]
[1752007932093,6.63634292,150.69,150.65,5.92364255]
[1752007932682,12.55998547,150.69,150.65,5.92364255]
[1752007935774,12.55998547,150.69,150.63,6.63858245]
[1752007935973,5.92364255,150.64,150.6,5.92364255]
[1752007937297,14.14564597,150.65,150.6,5.92364255]
[1752007941393,5.92364255,150.64,150.6,5.92364255]
[1752007942773,12.56211791,150.64,150.6,5.92364255]
[1752007945806,6.63847536,150.64,150.6,5.92364255]
[1752007947008,14.14548636,150.65,150.61,5.92364255]
[1752007954189,14.14548636,150.65,150.6,0.03]
[1752007954394,14.20548636,150.65,150.61,5.92364255]
[1752007956529,18.64964886,150.63,150.57,0.28432314]
[1752007956735,5.92364255,150.61,150.56,5.92364255]
[1752007957533,5.92364255,150.6,150.56,5.92364255]
[1752007957700,5.92364255,150.61,150.56,5.92364255]
[1752007958100,12.56360366,150.61,150.56,5.92364255]
[1752007958910,10.4369854,150.61,150.56,3.79702429]
[1752007959726,10.4369854,150.61,150.57,3.79702429]
[1752007960817,12.57273079,150.61,150.57,5.93276968]
[1752007961614,6.63996111,150.61,150.58,5.93276968]
[1752007970016,6.63996111,150.61,150.56,6.64175968]
[1752007970234,6.63996111,150.61,150.58,5.93276968]
[1752007971817,31.2218504,150.62,150.58,5.93276968]
[1752007974145,7.54536968,150.61,150.55,6.64231152]
[1752007974451,5.93276968,150.6,150.56,5.93276968]
[1752007976025,5.93276968,150.58,150.54,5.93276968]
[1752007976430,12.58276968,150.59,150.55,5.93276968]
[1752007977617,19.22356788,150.59,150.55,5.93276968]
[1752007978048,13.2907982,150.59,150.56,5.93276968]
[1752007980949,13.2907982,150.59,150.56,3.79743242]
[1752007983160,13.2907982,150.59,150.53,6.64319404]
[1752007983338,17.08823062,150.59,150.54,3.79743242]
[1752007983665,13.2907982,150.59,150.55,3.79743242]
[1752007987257,17.08823062,150.59,150.55,3.79743242]
[1752007987940,13.2907982,150.59,150.55,3.79743242]
[1752007989636,13.2907982,150.59,150.56,3.79743242]
[1752007991764,6.65,150.59,150.56,3.79743242]
[1752007992635,6.65,150.59,150.56,10.43929135]
[1752007992839,6.65,150.59,150.57,3.79743242]
[1752007999247,6.65,150.59,150.56,0.03]
[1752007999248,13.29062483,150.59,150.56,0.03]
[1752007999447,18.64964886,150.56,150.48,6.64532047]
[1752007999643,18.64964886,150.56,150.41,42.08628595]
[1752007999644,3.79743242,150.5,150.41,42.08628595]
[1752007999866,1.6021,150.52,150.49,3.79743242]
[1752008000055,1.6021,150.52,150.45,26.0]
[1752008000364,1.6021,150.52,150.5,3.79743242]
[1752008000552,1.6021,150.52,150.45,26.0]
[1752008000553,1.6021,150.52,150.51,3.79743242]
[1752008002656,1.6021,150.52,150.51,10.44150922]
[1752008003155,1.6021,150.52,150.49,6.64495979]
[1752008003357,1.6021,150.52,150.48,10.44265556]
[1752008003743,5.39953242,150.52,150.48,3.79743242]
[1752008004058,22.44708128,150.51,150.47,10.4431357]
[1752008006154,18.64964886,150.51,150.47,6.64570328]
[1752008006356,18.64964886,150.51,150.47,10.4431357]
[1752008006644,18.64964886,150.51,150.48,3.79743242]
[1752008006842,18.64964886,150.51,150.42,26.14216157]
[1752008006843,5.94062443,150.49,150.42,26.14216157]
[1752008007059,25.29387523,150.51,150.45,5.94062443]
[1752008007060,5.94062443,150.5,150.45,5.94062443]
[1752008007348,5.94062443,150.5,150.46,5.94062443]
[1752008008450,12.58517243,150.5,150.46,5.94062443]
[1752008009072,12.58517243,150.5,150.45,5.94062443]
[1752008009270,6.644548,150.5,150.45,12.58724421]
[1752008009578,12.58517243,150.5,150.45,12.58724421]
[1752008009952,24.59027329,150.49,150.45,5.94062443]
[1752008010667,5.94062443,150.48,150.44,5.94062443]
[1752008010843,12.04232443,150.48,150.44,5.94062443]
[1752008011260,18.64964886,150.47,150.43,12.58810504]
[1752008014257,18.64964886,150.47,150.44,5.94062443]
[1752008015380,18.64964886,150.47,150.43,6.64748061]
[1752008015583,18.64964886,150.47,150.44,5.94062443]
[1752008018378,18.64964886,150.47,150.43,12.58810504]
[1752008018568,18.64964886,150.47,150.44,5.94062443]
[1752008019782,18.64964886,150.47,150.44,12.58761695]
[1752008020071,6.1017,150.48,150.46,5.94062443]
[1752008020579,24.59027329,150.47,150.43,5.94062443]
[1752008020779,1.5904,150.46,150.43,5.94062443]
[1752008020972,1.5904,150.46,150.41,6.64849411]
[1752008021169,7.53102443,150.46,150.41,6.64849411]
[1752008021474,41.19102443,150.46,150.43,0.03]
[1752008021665,47.83731759,150.46,150.43,0.03]
[1752008021872,35.2504,150.46,150.43,0.03]
[1752008022073,41.19102443,150.46,150.42,5.94062443]
[1752008022272,47.83744416,150.46,150.41,12.58911854]
[1752008022475,47.83744416,150.46,150.42,5.94062443]
[1752008022973,47.83744416,150.46,150.42,5.27062443]
[1752008023673,47.83744416,150.46,150.42,11.91867198]
[1752008024062,47.83744416,150.46,150.42,5.94062443]
[1752008024673,41.89681973,150.46,150.42,5.94062443]
[1752008024990,35.2504,150.46,150.44,5.94062443]
[1752008025163,1.5904,150.46,150.41,6.64847335]
[1752008025480,8.23675213,150.46,150.43,5.94062443]
[1752008025861,1.5904,150.46,150.43,5.94062443]
[1752008028566,8.23669328,150.46,150.43,5.94062443]
[1752008028853,8.23669328,150.46,150.43,3.80386151]
[1752008029866,1.5904,150.46,150.43,3.80386151]
[1752008030474,12.04064102,150.46,150.42,10.45187292]
[1752008032882,12.04064102,150.46,150.42,3.80386151]
[1752008033773,8.23677951,150.46,150.43,3.80386151]
[1752008035367,8.23677951,150.46,150.41,6.64849411]
[1752008035581,8.23677951,150.46,150.43,3.80386151]
[1752008036889,8.23677951,150.46,150.41,6.64849411]
[1752008036890,8.23677951,150.46,150.42,3.80386151]
[1752008037585,8.23677951,150.46,150.41,6.64849411]
[1752008037766,18.64964886,150.45,150.41,6.64849411]
[1752008037971,18.64964886,150.45,150.42,3.80386151]
[1752008038180,18.64964886,150.45,150.41,6.64849411]
[1752008038498,25.29656348,150.45,150.42,3.80386151]
[1752008038791,29.10042499,150.45,150.41,3.80386151]
[1752008039190,29.10042499,150.45,150.4,6.64872694]
[1752008039394,25.29656348,150.45,150.41,3.80386151]
[1752008039693,29.10042499,150.45,150.41,3.80386151]
[1752008039878,18.64964886,150.45,150.41,10.45230969]
[1752008040074,18.64964886,150.45,150.42,3.80386151]
[1752008040282,18.64964886,150.45,150.41,6.64844818]
[1752008040481,18.64964886,150.45,150.42,3.80386151]
[1752008040882,18.64964886,150.45,150.41,6.64844818]
[1752008041085,18.64964886,150.45,150.42,3.80386151]
[1752008041467,18.64964886,150.45,150.43,3.80386151]
[1752008041967,18.64964886,150.45,150.39,1.52260127]
[1752008042182,18.64964886,150.45,150.4,6.64893617]
[1752008042400,18.64964886,150.45,150.43,3.80386151]
[1752008042715,1.5904,150.46,150.4,6.64893617]
[1752008042871,1.5904,150.46,150.43,3.80386151]
[1752008043294,1.5904,150.46,150.41,0.03]
[1752008043597,1.6504,150.46,150.43,3.80386151]
[1752008044187,25.29639689,150.45,150.41,0.03]
[1752008044497,29.1002584,150.45,150.41,3.83386151]
[1752008044667,25.29639689,150.45,150.41,3.83386151]
[1752008045073,25.29639689,150.45,150.41,10.48232706]
[1752008045273,25.29639689,150.45,150.41,3.83386151]
[1752008045496,25.29639689,150.45,150.41,0.03]
[1752008045497,29.1002584,150.45,150.41,0.03]
[1752008045682,18.64964886,150.43,150.41,0.03]
[1752008046692,33.64,150.44,150.42,3.80386151]
[1752008046891,33.64,150.44,150.41,6.6783843]
[1752008046892,33.64,150.44,150.43,3.80386151]
[1752008047097,149.1504,150.46,150.43,3.80386151]
[1752008047271,182.8104,150.46,150.41,6.6783843]
[1752008047476,182.8104,150.46,150.44,3.80386151]
[1752008047685,182.8104,150.46,150.41,6.6783843]
[1752008047972,149.1504,150.46,150.44,3.80386151]
[1752008048481,149.1504,150.46,150.41,6.6783843]
[1752008048806,18.64964886,150.45,150.43,5.94340224]
[1752008052729,18.64964886,150.45,150.42,5.94340224]
[1752008052885,52.28964886,150.45,150.42,5.94340224]
[1752008055503,58.93648605,150.45,150.41,12.62169815]
[1752008055886,58.93648605,150.45,150.41,0.03]
[1752008056081,5.94340224,150.43,150.41,0.03]
[1752008056327,26.1607511,150.42,150.41,0.03]
[1752008056615,20.21734886,150.42,150.41,0.03]
[1752008057589,20.21734886,150.42,150.41,5.97340224]
[1752008057890,53.87734886,150.42,150.41,0.03]
[1752008059192,60.52540098,150.42,150.41,0.03]
[1752008059515,66.46880322,150.42,150.41,0.03]
[1752008059808,53.87734886,150.42,150.41,0.03]
[1752008060014,149.1068,150.46,150.41,5.97340224]
[1752008060189,18.64964886,150.45,150.44,5.94340224]
[1752008060689,18.64964886,150.45,150.42,12.59136991]
[1752008063408,18.64964886,150.45,150.41,5.97340224]
[1752008063409,18.64964886,150.43,150.41,5.97340224]
[1752008063795,18.64964886,150.43,150.41,0.03]
[1752008064020,18.64964886,150.43,150.41,5.97340224]
[1752008064328,18.64964886,150.43,150.42,5.94340224]
[1752008064718,52.42964886,150.45,150.42,5.94340224]
[1752008066228,18.64964886,150.45,150.44,5.94340224]
[1752008066412,149.1068,150.46,150.44,5.94340224]
[1752008066607,167.75644886,150.46,150.45,5.94340224]
[1752008067717,167.75644886,150.46,150.42,6.64780565]
[1752008067923,167.75644886,150.46,150.44,5.94340224]
[1752008068245,18.64964886,150.45,150.41,0.03]
[1752008068405,18.64964886,150.45,150.44,5.94340224]
[1752008071030,18.64964886,150.45,150.43,5.94340224]
[1752008071212,59.07639698,150.45,150.41,12.62170418]
[1752008071417,5.94340224,150.44,150.41,0.03]
[1752008071734,18.64964886,150.42,150.41,0.03]
[1752008073235,18.64964886,150.42,150.41,5.97340224]
[1752008073429,33.78,150.43,150.41,5.97340224]
[1752008073615,18.64964886,150.43,150.42,5.94340224]
[1752008075513,149.1068,150.46,150.42,12.59145329]
[1752008075735,18.64964886,150.45,150.44,5.94340224]
[1752008075940,149.1068,150.46,150.44,5.94340224]
[1752008076142,166.20964886,150.46,150.45,5.94340224]
[1752008076319,166.20964886,150.46,150.42,6.64805105]
[1752008076636,166.20964886,150.46,150.44,5.94340224]
[1752008076937,18.64964886,150.45,150.44,5.94340224]
[1752008077525,18.64964886,150.45,150.43,5.94340224]
[1752008077713,147.56,150.46,150.44,5.94340224]
[1752008077917,147.56,150.46,150.41,6.67849411]
[1752008078234,18.64964886,150.45,150.44,5.94340224]
[1752008078841,18.64964886,150.45,150.41,6.67849411]
[1752008079014,18.64964886,150.45,150.44,5.94340224]
[1752008079512,18.64964886,150.45,150.42,5.94340224]
[1752008079734,52.44964886,150.45,150.42,5.94340224]
[1752008080726,59.09642706,150.45,150.42,5.94340224]
[1752008081234,59.09642706,150.45,150.41,12.62189635]
[1752008082355,59.09642706,150.45,150.41,5.97340224]
[1752008082642,66.5784293,150.45,150.41,0.03]
[1752008083360,60.63502706,150.45,150.41,12.62176493]
[1752008083649,53.98824886,150.45,150.42,5.94340224]
[1752008083947,20.18824886,150.45,150.42,5.94340224]
[1752008084125,53.96824886,150.45,150.43,5.94340224]
[1752008084323,53.96824886,150.45,150.42,6.64787767]
[1752008084537,53.96824886,150.45,150.43,5.94340224]
[1752008086242,53.96824886,150.45,150.42,12.59127991]
[1752008089228,53.96824886,150.45,150.42,5.94340224]
[1752008090752,54.02824886,150.45,150.42,5.94340224]
[1752008092538,54.02824886,150.45,150.43,5.94340224]
[1752008093045,20.24824886,150.45,150.43,5.94340224]
[1752008093364,20.24824886,150.45,150.44,2.48960212]
[1752008093657,0.06,150.45,150.44,8.43300436]
[1752008093857,0.06,150.45,150.44,5.94340224]
[1752008094229,18.70964886,150.45,150.43,5.94340224]
[1752008094846,52.48964886,150.45,150.4,6.64893617]
[1752008095159,64.9134511,150.45,150.4,12.59233841]
[1752008095333,1.6413,150.44,150.4,12.59233841]
[1752008095745,1.6413,150.44,150.4,5.94340224]
[1752008095944,1.6413,150.44,150.39,1.3804397]
[1752008095945,5.94340224,150.42,150.39,1.3804397]
[1752008096145,18.64964886,150.41,150.39,1.3804397]
[1752008096641,25.2981698,150.41,150.39,1.3804397]
[1752008097858,18.64964886,150.41,150.39,1.3804397]
[1752008099239,24.5930511,150.41,150.39,1.3804397]
[1752008099440,52.44964886,150.43,150.4,5.94340224]
[1752008099664,52.44964886,150.43,150.39,7.32384194]
[1752008100439,18.64964886,150.43,150.39,13.97313965]
[1752008100658,18.64964886,150.43,150.41,5.94340224]
[1752008101867,18.70964886,150.45,150.42,5.94340224]